fUST/lending_fUST_20241114
["ID","MTS","AMOUNT","RATE_DAILY","PERIOD"]
[342219063,1731595844141,-500.0,0.00016986,2]
[342219064,1731595844151,-500.0,0.00016986,2]
[342219065,1731595844160,-641.36,0.00016986,2]
[342219066,1731595844170,-500.0,0.00016986,2]
[342219067,1731595844180,-500.0,0.00016986,2]
[342219068,1731595844190,-691.43,0.00016986,2]
[342219069,1731595844200,-647.8,0.00016986,2]
[342219070,1731595844210,-755.66,0.00016986,2]
[342219071,1731595844220,-501.49,0.00016986,2]
[342219072,1731595844230,-500.0,0.00016986,2]
[342219073,1731595844240,-905.77,0.00016986,2]
[342219074,1731595844251,-547.24905079,0.00016986,2]
[342219075,1731595844262,-500.0,0.00016986,2]
[342219076,1731595844274,-500.0,0.00016986,2]
[342219077,1731595844284,-1145.47,0.00016986,2]
[342219078,1731595844294,-500.0,0.00016986,2]
[342219079,1731595844304,-500.0,0.00016986,2]
[342219080,1731595844314,-500.0,0.00016986,2]
[342219081,1731595844323,-500.0,0.00016986,2]
[342219082,1731595844339,-843.03,0.00016986,2]
[342219083,1731595844348,-500.0,0.00016986,2]
[342219084,1731595844359,-541.75,0.00016986,2]
[342219085,1731595844369,-500.0,0.00016986,2]
[342219086,1731595844379,-500.0,0.00016986,2]
[342219087,1731595844389,-500.0,0.00016986,2]
[342219088,1731595844399,-594.26,0.00016986,2]
[342219089,1731595844410,-500.0,0.00016986,2]
[342219090,1731595844419,-500.0,0.00016986,2]
[342219091,1731595844429,-533.4,0.00016986,2]
[342219092,1731595844439,-500.0,0.00016986,2]
[342219093,1731595844449,-582.28,0.00016986,2]
[342219094,1731595844460,-500.0,0.00016986,2]
[342219095,1731595844470,-500.0,0.00016986,2]
[342219096,1731595844480,-500.0,0.00016986,2]
[342219097,1731595844490,-500.0,0.00016986,2]
[342219098,1731595844499,-716.7,0.00016986,2]
[342219099,1731595844509,-500.0,0.00016986,2]
[342219100,1731595844518,-500.0,0.00016986,2]
[342219101,1731595844528,-500.0,0.00016986,2]
[342219102,1731595844538,-2015.3,0.00016986,2]
[342219103,1731595844548,-500.0,0.00016986,2]
[342219104,1731595844558,-753.79,0.00016986,2]
[342219105,1731595844568,-746.97,0.00016986,2]
[342219106,1731595844582,-500.0,0.00016986,2]
[342219107,1731595844592,-638.18,0.00016986,2]
[342219108,1731595844604,-500.0,0.00016986,2]
[342219109,1731595844614,-708.71,0.00016986,2]
[342219110,1731595844623,-895.0,0.00016986,2]
[342219111,1731595844633,-608.83404218,0.00016986,2]
[342219112,1731595844642,-503.67010491,0.00016986,2]
[342219113,1731595844652,-1138.79,0.00016986,2]
[342219114,1731595844662,-500.0,0.00016986,2]
[342219115,1731595844671,-1401.03,0.00016986,2]
[342219116,1731595844682,-754.37,0.00016986,2]
[342219117,1731595844691,-500.0,0.00016986,2]
[342219118,1731595844701,-1257.03,0.00016986,2]
[342219119,1731595844710,-500.0,0.00016986,2]
[342219120,1731595844720,-556.31138299,0.00016986,2]
[342219121,1731595844730,-500.0,0.00016986,2]
[342219122,1731595844740,-500.0,0.00016986,2]
[342219123,1731595844750,-500.0,0.00016986,2]
[342219124,1731595844760,-500.0,0.00016986,2]
[342219125,1731595844769,-500.0,0.00016986,2]
[342219126,1731595844780,-509.86221459,0.00016986,2]
[342219127,1731595844790,-500.0,0.00016986,2]
[342219128,1731595844800,-13677.72,0.00016986,2]
[342219129,1731595844809,-500.0,0.00016986,2]
[342219130,1731595844819,-500.0,0.00016986,2]
[342219131,1731595844835,-296.03535595,0.00016986,2]
[342219132,1731595844844,-156.22211293,0.00016986,2]
[342219133,1731595844853,-500.0,0.00016986,2]
[342219134,1731595844863,-500.0,0.00016986,2]
[342219135,1731595844873,-658.16,0.00016986,2]
[342219136,1731595844882,-1743.89,0.00016986,2]
[342219137,1731595844892,-675.85,0.00016986,2]
[342219138,1731595844901,-500.0,0.00016986,2]
[342219139,1731595844911,-500.0,0.00016986,2]
[342219140,1731595844920,-500.0,0.00016986,2]
[342219141,1731595844930,-500.0,0.00016986,2]
[342219142,1731595844940,-1047.87,0.00016986,2]
[342219143,1731595844949,-500.0,0.00016986,2]
[342219144,1731595844959,-146.3333676,0.00016986,2]
[342219145,1731595845156,-379.99308121,0.00016986,2]
[342219146,1731595845168,-16678.35355119,0.00016986,2]
[342219147,1731595845177,-500.0,0.00016986,2]
[342219148,1731595845187,-500.0,0.00016986,2]
[342219149,1731595845197,-655.25,0.00016986,2]
[342219150,1731595845206,-500.0,0.00016986,2]
[342219151,1731595845216,-500.0,0.00016986,2]
[342219152,1731595845225,-500.0,0.00016986,2]
[342219153,1731595845235,-200.0,0.00016986,2]
[342219154,1731595845244,-903.09,0.00016986,2]
[342219155,1731595845253,-1587.39,0.00016986,2]
[342219156,1731595845263,-1574.22,0.00016986,2]
[342219157,1731595845272,-500.0,0.00016986,2]
[342219158,1731595845282,-1268.94,0.00016986,2]
[342219159,1731595845291,-500.0,0.00016986,2]
[342219160,1731595845300,-576.97,0.00016986,2]
[342219161,1731595845310,-153.19472958,0.00016986,2]
[342219162,1731595845319,-500.0,0.00016986,2]
[342219163,1731595845332,-500.0,0.00016986,2]
[342219164,1731595845341,-500.0,0.00016986,2]
[342219165,1731595845350,-500.0,0.00016986,2]
[342219166,1731595845360,-500.0,0.00016986,2]
[342219167,1731595845369,-500.0,0.00016986,2]
[342219168,1731595845379,-503.85,0.00016986,2]
[342219169,1731595845388,-737.26,0.00016986,2]
[342219170,1731595845398,-780.54,0.00016986,2]
[342219171,1731595845407,-827.9,0.00016986,2]
[342219172,1731595845417,-1982.54,0.00016986,2]
[342219173,1731595845426,-237.97912662,0.00016986,2]
[342219174,1731595845435,-500.0,0.00016986,2]
[342219175,1731595845445,-590.7,0.00016986,2]
[342219176,1731595845454,-2714.29,0.00016986,2]
[342219177,1731595845464,-274.0265025,0.00016986,2]
[342219178,1731595845474,-1120.27,0.00016986,2]
[342219179,1731595845484,-1199.09,0.00016986,2]
[342219180,1731595845494,-510.29,0.00016986,2]
[342219181,1731595845504,-500.0,0.00016986,2]
[342219182,1731595845513,-500.0,0.00016986,2]
[342219183,1731595845522,-1077.2,0.00016986,2]
[342219184,1731595845533,-763.2,0.00016986,2]
[342219185,1731595845542,-691.77,0.00016986,2]
[342219186,1731595845552,-500.0,0.00016986,2]
[342219187,1731595845561,-500.0,0.00016986,2]
[342219190,1731595845571,-500.0,0.00016986,2]
[342219191,1731595845583,-835.05,0.00016986,2]
[342219192,1731595845593,-529.13,0.00016986,2]
[342219193,1731595845602,-677.57,0.00016986,2]
[342219196,1731595845612,-2021.33,0.00016986,2]
[342219198,1731595845623,-500.0,0.00016986,2]
[342219200,1731595845632,-500.0,0.00016986,2]
[342219201,1731595845642,-500.0,0.00016986,2]
[342219202,1731595845652,-500.0,0.00016986,2]
[342219203,1731595845661,-500.0,0.00016986,2]
[342219204,1731595845671,-604.58,0.00016986,2]
[342219205,1731595845682,-500.0,0.00016986,2]
[342219206,1731595845692,-4593.36,0.00016986,2]
[342219207,1731595845702,-500.0,0.00016986,2]
[342219208,1731595845712,-500.0,0.00016986,2]
[342219210,1731595845722,-1328.77,0.00016986,2]
[342219211,1731595845732,-639.18,0.00016986,2]
[342219212,1731595845742,-500.0,0.00016986,2]
[342219213,1731595845752,-832.04,0.00016986,2]
[342219214,1731595845762,-500.0,0.00016986,2]
[342219215,1731595845772,-867.76,0.00016986,2]
[342219216,1731595845782,-556.7381121,0.00016986,2]
[342219217,1731595845793,-7208.99,0.00016986,2]
[342219218,1731595845802,-597.54,0.00016986,2]
[342219219,1731595845812,-629.54,0.00016986,2]
[342219220,1731595845822,-616.9,0.00016986,2]
[342219221,1731595845836,-500.0,0.00016986,2]
[342219222,1731595845846,-500.0,0.00016986,2]
[342219223,1731595845856,-575.76,0.00016986,2]
[342219224,1731595845865,-4383.45,0.00016986,2]
[342219225,1731595845874,-642.4,0.00016986,2]
[342219226,1731595845884,-500.0,0.00016986,2]
[342219227,1731595845894,-500.0,0.00016986,2]
[342219228,1731595845905,-816.47,0.00016986,2]
[342219229,1731595845915,-500.0,0.00016986,2]
[342219230,1731595845925,-500.0,0.00016986,2]
[342219231,1731595845935,-716.09,0.00016986,2]
[342219232,1731595845945,-500.0,0.00016986,2]
[342219233,1731595845956,-1455.19,0.00016986,2]
[342219234,1731595845965,-500.0,0.00016986,2]
[342219235,1731595845975,-1000.0,0.00017021,2]
[342219236,1731595845985,-502.06001991,0.00017021,2]
[342219237,1731595845995,-218.27556139,0.00017021,2]
[342219238,1731595846004,-1042.69229663,0.00017021,2]
[342219239,1731595846019,-500.0,0.00017021,2]
[342219240,1731595846029,-156.881769,0.000171,2]
[342219241,1731595846038,-1743.50334167,0.0001716,2]
[342219242,1731595846048,-150.112233,0.000172,2]
[342219243,1731595846060,-151.0,0.0001726,2]
[342219244,1731595846069,-500.0,0.0001726,2]
[342219245,1731595846082,-500.0,0.0001726,2]
[342219246,1731595846092,-500.0,0.0001726,2]
[342219247,1731595846104,-788.3,0.0001726,2]
[342219248,1731595846113,-500.0,0.0001726,2]
[342219249,1731595846123,-500.0,0.0001726,2]
[342219250,1731595846133,-500.0,0.0001726,2]
[342219251,1731595846143,-500.0,0.0001726,2]
[342219252,1731595846154,-809.23,0.0001726,2]
[342219253,1731595846164,-500.0,0.0001726,2]
[342219254,1731595846174,-500.0,0.0001726,2]
[342219255,1731595846184,-525.76,0.0001726,2]
[342219256,1731595846194,-581.69,0.0001726,2]
[342219258,1731595846204,-500.0,0.0001726,2]
[342219259,1731595846214,-500.0,0.0001726,2]
[342219260,1731595846224,-500.0,0.0001726,2]
[342219261,1731595846234,-500.0,0.0001726,2]
[342219262,1731595846380,-500.0,0.0001726,2]
[342219263,1731595846390,-500.0,0.0001726,2]
[342219264,1731595846401,-523.3,0.0001726,2]
[342219265,1731595846410,-1000.0,0.0001726,2]
[342219266,1731595846419,-500.0,0.0001726,2]
[342219267,1731595846429,-500.0,0.0001726,2]
[342219268,1731595846438,-500.0,0.0001726,2]
[342219269,1731595846447,-500.0,0.0001726,2]
[342219270,1731595846457,-839.17,0.0001726,2]
[342219271,1731595846466,-968.41,0.0001726,2]
[342219272,1731595846476,-614.57,0.0001726,2]
[342219273,1731595846486,-500.0,0.0001726,2]
[342219274,1731595846496,-541.69,0.0001726,2]
[342219275,1731595846506,-500.0,0.0001726,2]
[342219276,1731595846516,-500.0,0.0001726,2]
[342219277,1731595846525,-500.0,0.0001726,2]
[342219278,1731595846535,-628.28,0.0001726,2]
[342219279,1731595846544,-622.52,0.0001726,2]
[342219280,1731595846554,-500.0,0.0001726,2]
[342219281,1731595846563,-500.0,0.0001726,2]
[342219282,1731595846573,-500.0,0.0001726,2]
[342219283,1731595846590,-646.04,0.0001726,2]
[342219284,1731595846599,-681.07,0.0001726,2]
[342219285,1731595846608,-500.0,0.0001726,2]
[342219286,1731595846618,-500.0,0.0001726,2]
[342219287,1731595846627,-500.0,0.0001726,2]
[342219288,1731595846638,-641.36,0.0001726,2]
[342219289,1731595846647,-500.0,0.0001726,2]
[342219290,1731595846656,-691.43,0.0001726,2]
[342219291,1731595846666,-647.8,0.0001726,2]
[342219292,1731595846676,-755.66,0.0001726,2]
[342219293,1731595846686,-501.49,0.0001726,2]
[342219294,1731595846696,-500.0,0.0001726,2]
[342219295,1731595846706,-449.75762169,0.0001726,2]
[342219296,1731595846716,-500.0,0.0001726,2]
[342219297,1731595846725,-905.77,0.0001726,2]
[342219298,1731595846736,-1145.47,0.0001726,2]
[342219299,1731595846745,-500.0,0.0001726,2]
[342219300,1731595846754,-500.0,0.0001726,2]
[342219301,1731595846763,-500.0,0.0001726,2]
[342219302,1731595846773,-500.0,0.0001726,2]
[342219303,1731595846783,-843.03,0.0001726,2]
[342219304,1731595846794,-500.0,0.0001726,2]
[342219305,1731595846804,-500.0,0.0001726,2]
[342219306,1731595846815,-541.75,0.0001726,2]
[342219307,1731595846825,-500.0,0.0001726,2]
[342219308,1731595846840,-500.0,0.0001726,2]
[342219309,1731595846849,-594.26,0.0001726,2]
[342219310,1731595846858,-500.0,0.0001726,2]
[342219311,1731595846868,-500.0,0.0001726,2]
[342219312,1731595846885,-533.4,0.0001726,2]
[342219313,1731595846897,-500.0,0.0001726,2]
[342219314,1731595846907,-582.28,0.0001726,2]
[342219315,1731595846919,-500.0,0.0001726,2]
[342219316,1731595846928,-500.0,0.0001726,2]
[342219317,1731595846938,-500.0,0.0001726,2]
[342219318,1731595846948,-500.0,0.0001726,2]
[342219319,1731595846958,-716.7,0.0001726,2]
[342219320,1731595846968,-500.0,0.0001726,2]
[342219321,1731595846977,-500.0,0.0001726,2]
[342219322,1731595846987,-500.0,0.0001726,2]
[342219323,1731595846996,-2015.3,0.0001726,2]
[342219324,1731595847005,-500.0,0.0001726,2]
[342219325,1731595847020,-753.79,0.0001726,2]
[342219326,1731595847029,-746.97,0.0001726,2]
[342219327,1731595847039,-500.0,0.0001726,2]
[342219328,1731595847048,-638.18,0.0001726,2]
[342219329,1731595847061,-500.0,0.0001726,2]
[342219330,1731595847071,-708.71,0.0001726,2]
[342219331,1731595847084,-895.0,0.0001726,2]
[342219332,1731595847094,-1138.79,0.0001726,2]
[342219333,1731595847105,-500.0,0.0001726,2]
[342219334,1731595847115,-1401.03,0.0001726,2]
[342219336,1731595847124,-754.37,0.0001726,2]
[342219338,1731595847133,-500.0,0.0001726,2]
[342219340,1731595847143,-1257.03,0.0001726,2]
[342219342,1731595847153,-500.0,0.0001726,2]
[342219343,1731595847163,-500.0,0.0001726,2]
[342219345,1731595847172,-500.0,0.0001726,2]
[342219346,1731595847182,-500.0,0.0001726,2]
[342219348,1731595847191,-500.0,0.0001726,2]
[342219350,1731595847201,-500.0,0.0001726,2]
[342219352,1731595847210,-500.0,0.0001726,2]
[342219354,1731595847220,-13677.72,0.0001726,2]
[342219355,1731595847229,-500.0,0.0001726,2]
[342219356,1731595847239,-500.0,0.0001726,2]
[342219358,1731595847248,-500.0,0.0001726,2]
[342219359,1731595847259,-500.0,0.0001726,2]
[342219361,1731595847268,-58.32729162,0.0001726,2]
[342219364,1731595847284,-599.83270838,0.0001726,2]
[342219365,1731595847294,-1743.89,0.0001726,2]
[342219367,1731595847305,-675.85,0.0001726,2]
[342219369,1731595847314,-500.0,0.0001726,2]
[342219371,1731595847324,-500.0,0.0001726,2]
[342219372,1731595847340,-500.0,0.0001726,2]
[342219374,1731595847349,-460.80548908,0.0001726,2]
[342219390,1731595847667,-500.0,0.00016438,2]
[342219391,1731595847677,-500.0,0.00016712,2]
[342219392,1731595847687,-39.19451092,0.0001726,2]
[342219393,1731595847696,-1047.87,0.0001726,2]
[342219394,1731595847706,-500.0,0.0001726,2]
[342219395,1731595847716,-17204.68,0.0001726,2]
[342219396,1731595847726,-500.0,0.0001726,2]
[342219397,1731595847736,-500.0,0.0001726,2]
[342219398,1731595847745,-655.25,0.0001726,2]
[342219399,1731595847755,-500.0,0.0001726,2]
[342219400,1731595847764,-500.0,0.0001726,2]
[342219401,1731595847774,-500.0,0.0001726,2]
[342219402,1731595847784,-200.0,0.0001726,2]
[342219403,1731595847794,-903.09,0.0001726,2]
[342219404,1731595847803,-1587.39,0.0001726,2]
[342219405,1731595847813,-1574.22,0.0001726,2]
[342219406,1731595847823,-500.0,0.0001726,2]
[342219407,1731595847835,-1268.94,0.0001726,2]
[342219408,1731595847844,-500.0,0.0001726,2]
[342219409,1731595847853,-576.97,0.0001726,2]
[342219410,1731595847862,-500.0,0.0001726,2]
[342219411,1731595847872,-500.0,0.0001726,2]
[342219412,1731595847882,-500.0,0.0001726,2]
[342219413,1731595847891,-500.0,0.0001726,2]
[342219414,1731595847900,-500.0,0.0001726,2]
[342219415,1731595847910,-503.85,0.0001726,2]
[342219416,1731595847920,-500.0,0.0001726,2]
[342219417,1731595847929,-737.26,0.0001726,2]
[342219418,1731595847939,-780.54,0.0001726,2]
[342219419,1731595847948,-827.9,0.0001726,2]
[342219420,1731595847957,-1982.54,0.0001726,2]
[342219421,1731595847966,-500.0,0.0001726,2]
[342219422,1731595847976,-590.7,0.0001726,2]
[342219423,1731595847985,-2714.29,0.0001726,2]
[342219424,1731595847995,-1120.27,0.0001726,2]
[342219425,1731595848004,-1199.09,0.0001726,2]
[342219426,1731595848014,-510.29,0.0001726,2]
[342219427,1731595848024,-500.0,0.0001726,2]
[342219428,1731595848037,-175.80696959,0.0001726,2]
[342219429,1731595848049,-324.19303041,0.0001726,2]
[342219430,1731595848060,-789.80688959,0.0001726,2]
[342219431,1731595848072,-287.39311041,0.0001726,2]
[342219432,1731595848085,-190.18706802,0.0001726,2]
[342219433,1731595848106,-573.01293198,0.0001726,2]
[342219434,1731595848119,-318.63706802,0.0001726,2]
[342219435,1731595848131,-373.13293198,0.0001726,2]
[342219436,1731595848154,-500.0,0.0001726,2]
[342219437,1731595848174,-439.92033289,0.0001726,2]
[342219438,1731595848194,-500.0,0.0001726,2]
[342219439,1731595848209,-835.05,0.0001726,2]
[342219440,1731595848220,-529.13,0.0001726,2]
[342219441,1731595848231,-677.57,0.0001726,2]
[342219442,1731595848242,-2021.33,0.0001726,2]
[342219443,1731595848253,-500.0,0.0001726,2]
[342219444,1731595848262,-500.0,0.0001726,2]
[342219445,1731595848276,-500.0,0.0001726,2]
[342219446,1731595848290,-500.0,0.0001726,2]
[342219447,1731595848300,-604.58,0.0001726,2]
[342219448,1731595848310,-4593.36,0.0001726,2]
[342219449,1731595848319,-500.0,0.0001726,2]
[342219450,1731595848332,-500.0,0.0001726,2]
[342219451,1731595848342,-500.0,0.0001726,2]
[342219452,1731595848352,-500.0,0.0001726,2]
[342219453,1731595848362,-1328.77,0.0001726,2]
[342219454,1731595848372,-639.18,0.0001726,2]
[342219455,1731595848382,-522.03563884,0.0001726,2]
[342219456,1731595848392,-832.04,0.0001726,2]
[342219457,1731595848401,-500.0,0.0001726,2]
[342219458,1731595848411,-867.76,0.0001726,2]
[342219459,1731595848420,-7208.99,0.0001726,2]
[342219460,1731595848430,-597.54,0.0001726,2]
[342219461,1731595848440,-629.54,0.0001726,2]
[342219462,1731595848450,-616.9,0.0001726,2]
[342219463,1731595848459,-362.69034507,0.0001726,2]
[342219464,1731595848469,-500.0,0.0001726,2]
[342219465,1731595848479,-575.76,0.0001726,2]
[342219466,1731595848489,-4383.45,0.0001726,2]
[342219467,1731595848499,-642.4,0.0001726,2]
[342219468,1731595848509,-500.0,0.0001726,2]
[342219469,1731595848519,-500.0,0.0001726,2]
[342219470,1731595848529,-816.47,0.0001726,2]
[342219471,1731595848540,-179.62230885,0.0001726,2]
[342219472,1731595848550,-500.0,0.0001726,2]
[342219473,1731595848560,-716.09,0.0001726,2]
[342219474,1731595848570,-500.0,0.0001726,2]
[342219475,1731595848584,-1455.19,0.0001726,2]
[342219476,1731595848593,-500.0,0.0001726,2]
[342219477,1731595848603,-150.112236,0.000173,2]
[342219478,1731595848613,-150.112233,0.000173,2]
[342219479,1731595848623,-151.0,0.00017366,2]
[342219480,1731595848634,-151.0,0.00017366,2]
[342219481,1731595848643,-151.0,0.00017366,2]
[342219482,1731595848653,-151.0000005,0.00017367,2]
[342219483,1731595848663,-423.633,0.00017387,2]
[342219484,1731595848673,-150.112233,0.000174,2]
[342219485,1731595848683,-150.112233,0.000174,2]
[342219486,1731595848692,-150.112233,0.000174,2]
[342219487,1731595848702,-151.0,0.00017468,2]
[342219488,1731595848712,-151.0,0.00017468,2]
[342219489,1731595848722,-414.62901046,0.0001747,2]
[342219490,1731595848732,-9118.41983066,0.0001747,2]
[342219491,1731595848742,-151.0,0.00017472,2]
[342219492,1731595848751,-151.0,0.00017472,2]
[342219493,1731595848761,-151.0,0.00017474,2]
[342219494,1731595848771,-151.0,0.00017474,2]
[342219495,1731595848781,-230.90031118,0.00017485,2]
[342219496,1731595848791,-1000.0,0.00017487,2]
[342219497,1731595848800,-150.7145024,0.00017487,2]
[342219498,1731595848809,-297.88690629,0.00017487,2]
[342219499,1731595848819,-540.55933082,0.00017489,2]
[342219500,1731595848830,-500.0,0.00017521,2]
[342219501,1731595848839,-1001.33135999,0.00017521,2]
[342219502,1731595848850,-500.0,0.00017521,2]
[342219503,1731595848860,-1000.0,0.00017521,2]
[342219504,1731595848870,-1000.0,0.00017521,2]
[342219505,1731595848879,-1118.38139978,0.00017521,2]
[342219506,1731595848889,-1000.0,0.00017521,2]
[342219507,1731595848898,-1000.0,0.00017521,2]
[342219508,1731595848907,-1054.86113926,0.00017521,2]
[342219509,1731595848917,-1035.13435047,0.00017521,2]
[342219510,1731595848926,-500.0,0.00017534,2]
[342219511,1731595848936,-500.0,0.00017534,2]
[342219512,1731595848945,-788.3,0.00017534,2]
[342219513,1731595848954,-500.0,0.00017534,2]
[342219514,1731595848963,-500.0,0.00017534,2]
[342219515,1731595848973,-474.00084551,0.00017534,2]
[342219516,1731595848983,-500.0,0.00017534,2]
[342219517,1731595848993,-809.23,0.00017534,2]
[342219518,1731595849002,-412.86343458,0.00017534,2]
[342219519,1731595849014,-500.0,0.00017534,2]
[342219520,1731595849025,-525.76,0.00017534,2]
[342219521,1731595849035,-581.69,0.00017534,2]
[342219522,1731595849045,-500.0,0.00017534,2]
[342219523,1731595849060,-500.0,0.00017534,2]
[342219524,1731595849070,-500.0,0.00017534,2]
[342219525,1731595849081,-500.0,0.00017534,2]
[342219526,1731595849091,-500.0,0.00017534,2]
[342219527,1731595849100,-500.0,0.00017534,2]
[342219528,1731595849110,-523.3,0.00017534,2]
[342219529,1731595849120,-1000.0,0.00017534,2]
[342219530,1731595849129,-500.0,0.00017534,2]
[342219531,1731595849139,-500.0,0.00017534,2]
[342219532,1731595849148,-548.05094948,0.00017534,2]
[342219533,1731595849158,-500.0,0.00017534,2]
[342219534,1731595849167,-839.17,0.00017534,2]
[342219535,1731595849177,-968.41,0.00017534,2]
[342219536,1731595849187,-614.57,0.00017534,2]
[342219537,1731595849196,-500.0,0.00017534,2]
[342219538,1731595849206,-541.69,0.00017534,2]
[342219539,1731595849216,-500.0,0.00017534,2]
[342219540,1731595849225,-484.04163114,0.00017534,2]
[342219541,1731595849235,-500.0,0.00017534,2]
[342219542,1731595849244,-628.28,0.00017534,2]
[342219543,1731595849254,-622.52,0.00017534,2]
[342219544,1731595849263,-500.0,0.00017534,2]
[342219545,1731595849273,-500.0,0.00017534,2]
[342219546,1731595849282,-500.0,0.00017534,2]
[342219547,1731595849292,-646.04,0.00017534,2]
[342219548,1731595849302,-681.07,0.00017534,2]
[342219549,1731595849311,-500.0,0.00017534,2]
[342219550,1731595849321,-500.0,0.00017534,2]
[342219551,1731595849334,-500.0,0.00017534,2]
[342219552,1731595849343,-641.36,0.00017534,2]
[342219553,1731595849353,-500.0,0.00017534,2]
[342219554,1731595849363,-691.43,0.00017534,2]
[342219555,1731595849373,-647.8,0.00017534,2]
[342219556,1731595849384,-755.66,0.00017534,2]
[342219557,1731595849394,-501.49,0.00017534,2]
[342219558,1731595849403,-500.0,0.00017534,2]
[342219559,1731595849412,-500.0,0.00017534,2]
[342219560,1731595849422,-905.77,0.00017534,2]
[342219561,1731595849431,-1145.47,0.00017534,2]
[342219562,1731595849440,-500.0,0.00017534,2]
[342219563,1731595849449,-500.0,0.00017534,2]
[342219564,1731595849458,-500.0,0.00017534,2]
[342219565,1731595849468,-597.59970981,0.00017534,2]
[342219566,1731595849477,-843.03,0.00017534,2]
[342219567,1731595849487,-500.0,0.00017534,2]
[342219568,1731595849496,-500.0,0.00017534,2]
[342219569,1731595849507,-541.75,0.00017534,2]
[342219570,1731595849517,-500.0,0.00017534,2]
[342219571,1731595849526,-500.0,0.00017534,2]
[342219572,1731595849536,-594.26,0.00017534,2]
[342219573,1731595849546,-500.0,0.00017534,2]
[342219574,1731595849555,-500.0,0.00017534,2]
[342219575,1731595849565,-533.4,0.00017534,2]
[342219576,1731595849575,-500.0,0.00017534,2]
[342219577,1731595849594,-582.28,0.00017534,2]
[342219578,1731595849606,-499.86399957,0.00017534,2]
[342219579,1731595849791,-500.0,0.00017534,2]
[342219580,1731595849802,-500.0,0.00017534,2]
[342219581,1731595849811,-500.0,0.00017534,2]
[342219582,1731595849821,-716.7,0.00017534,2]
[342219583,1731595849833,-500.0,0.00017534,2]
[342219584,1731595849843,-500.0,0.00017534,2]
[342219585,1731595849853,-500.0,0.00017534,2]
[342219586,1731595849862,-2015.3,0.00017534,2]
[342219587,1731595849871,-500.0,0.00017534,2]
[342219588,1731595849881,-753.79,0.00017534,2]
[342219589,1731595849890,-746.97,0.00017534,2]
[342219590,1731595849899,-500.0,0.00017534,2]
[342219591,1731595849909,-638.18,0.00017534,2]
[342219592,1731595849918,-500.0,0.00017534,2]
[342219593,1731595849927,-708.71,0.00017534,2]
[342219594,1731595849936,-895.0,0.00017534,2]
[342219595,1731595849946,-1138.79,0.00017534,2]
[342219596,1731595849956,-500.0,0.00017534,2]
[342219597,1731595849966,-1401.03,0.00017534,2]
[342219598,1731595849975,-754.37,0.00017534,2]
[342219599,1731595849985,-500.0,0.00017534,2]
[342219600,1731595849994,-1257.03,0.00017534,2]
[342219601,1731595850003,-500.0,0.00017534,2]
[342219602,1731595850012,-500.0,0.00017534,2]